[Event "AZE-ch Men 2019"]
[Site "Baku"]
[Date "2019.01.18"]
[Round "3"]
[White "Allahverdiyeva, Ayan"]
[Black "Isgandarov, Shahriyar"]
[Result "1/2-1/2"]
[ECO "B33"]
[WhiteElo "1975"]
[BlackElo "2113"]
[Annotator "NA"]
[PlyCount "104"]
[EventDate "2019.01.16"]
[EventType "swiss"]
[EventCountry "AZE"]
[SourceTitle "playchess.com"]
[Source "ChessBase"]
[SourceQuality "1"]
[TimeControl "40/5400+30:1800+30"]

1. e4 {[%emt 0:03:00]} c5 {[%emt 0:00:00]} 2. Nf3 {[%emt 0:02:38]} Nc6 {[%emt 0:00:00]} 3. d4 {[%emt 0:00:18]} cxd4 {[%emt 0:00:09]} 4. Nxd4 {[%emt 0:00:04]} Nf6 {[%emt 0:00:06]} 5. Nc3 {[%emt 0:00:05]} e6 {[%emt 0:00:08]} 6. Ndb5 {[%emt 0:00:25]} d6 {[%emt 0:00:43]} 7. Bf4 {[%emt 0:00:06]} e5 {[%emt 0:00:47]} 8. Bg5 {[%emt 0:00:04]} a6 {[%emt 0:00:59]} 9. Na3 {[%emt 0:00:31]} b5 {[%emt 0:01:29]} 10. Bxf6 {[%emt 0:01:09]} gxf6 {[%emt 0:07:15]} 11. Nd5 {[%emt 0:00:29]} Bg7 {[%emt 0:02:38]} 12. g3 {[%emt 0:15:51]} O-O {[%emt 0:03:34]} 13. Bg2 {[%emt 0:00:33]} Ne7 {[%emt 0:07:53]} 14. c3 {[%emt 0:07:22]} Rb8 {[%emt 0:07:17]} 15. Nc2 {[%emt 0:07:50]} f5 {[%emt 0:03:34]} 16. Nxe7+ {[%emt 0:15:46]} Qxe7 {[%emt 0:00:05]} 17. Nb4 {[%emt 0:00:02]} Bb7 {[%emt 0:08:14]} 18. Nd5 {[%emt 0:00:22]} Bxd5 {[%emt 0:00:51]} 19. Qxd5 {[%emt 0:00:11]} fxe4 {[%emt 0:02:14]} 20. Bxe4 {[%emt 0:05:47]} Kh8 {[%emt 0:00:49]} 21. O-O-O {[%emt 0:12:26]} f5 {[%emt 0:01:20]} 22. Bc2 {[%emt 0:00:14]} Rb6 {[%emt 0:01:13]} 23. Kb1 {[%emt 0:03:46]} e4 {[%emt 0:08:43]} 24. Rhe1 {[%emt 0:08:24]} b4 {[%emt 0:03:37]} 25. g4 {[%emt 0:01:55]} bxc3 {[%emt 0:03:56]} 26. b3 {[%emt 0:00:05]} Qe5 {[%emt 0:12:10]} 27. gxf5 {[%emt 0:05:42]} Rxf5 {[%emt 0:00:21]} 28. Qxe4 {[%emt 0:06:01]} Qxe4 {[%emt 0:02:03]} 29. Rxe4 {[%emt 0:00:08]} Rxf2 {[%emt 0:00:45]} 30. Re7 {[%emt 0:00:08]} Rb8 {[%emt 0:07:38]} 31. Rg1 {[%emt 0:01:19]} Rg8 {[%emt 0:00:31]} 32. h3 {[%emt 0:00:21]} Rh2 {[%emt 0:01:40]} 33. Bf5 {[%emt 0:02:19]} Rb2+ {[%emt 0:01:44]} 34. Ka1 {[%emt 0:00:23]} Rf2 {[%emt 0:02:59]} 35. Bd3 c2+ {[%emt 0:01:10]} 36. Rexg7 {[%emt 0:01:18]} Rxg7 {[%emt 0:00:06]} 37. Rc1 {[%emt 0:00:03]} Rg3 {[%emt 0:04:21]} 38. Bxa6 {[%emt 0:00:44]} d5 {[%emt 0:02:46]} 39. Kb2 {[%emt 0:01:09]} d4 {[%emt 0:01:10]} 40. Rxc2 {[%emt 0:00:00]} Rxc2+ {[%emt 0:00:00]} 41. Kxc2 {[%emt 0:01:37]} Rxh3 {[%emt 0:03:52]} 42. a4 {[%emt 0:01:47]} Rc3+ {[%emt 0:17:51]} 43. Kb2 {[%emt 0:00:18]} Rc6 {[%emt 0:04:45]} 44. Bd3 {[%emt 0:01:34]} Kg7 {[%emt 0:02:29]} 45. a5 {[%emt 0:00:04]} Kf6 {[%emt 0:01:37]} 46. a6 {[%emt 0:03:21]} Rc7 {[%emt 0:00:27]} 47. b4 {[%emt 0:00:18]} Ke7 {[%emt 0:01:32]} 48. b5 {[%emt 0:00:18]} Kd6 {[%emt 0:01:08]} 49. b6 {[%emt 0:00:10]} Rc8 {[%emt 0:00:37]} 50. a7 {[%emt 0:03:20]} Kc6 {[%emt 0:01:14]} 51. a8=Q+ {[%emt 0:00:59]} Rxa8 {[%emt 0:00:03]} 52. Be4+ {[%emt 0:00:03]} Kxb6 {[%emt 0:00:03]} 1/2-1/2

[Event "AZE-ch Men 2019"]
[Site "Baku"]
[Date "2019.01.19"]
[Round "4"]
[White "Novruzov, Emin"]
[Black "Allahverdiyeva, Ayan"]
[Result "0-1"]
[ECO "C00"]
[WhiteElo "1910"]
[BlackElo "1975"]
[Annotator "NA RC"]
[PlyCount "80"]
[EventDate "2019.01.16"]
[EventType "swiss"]
[EventCountry "AZE"]
[SourceTitle "playchess.com"]
[Source "ChessBase"]
[SourceQuality "1"]
[TimeControl "40/5400+30:1800+30"]

1. e4 e6 2. Nc3 Nf6 3. d4 d5 {[%emt 0:07:34]} 4. exd5 {[%emt 0:00:58]} exd5 {[%emt 0:00:36]} 5. Bd3 {[%emt 0:01:50]} Be7 {[%emt 0:06:45]} 6. Nge2 {[%emt 0:01:30]} Nc6 {[%emt 0:00:44]} 7. a3 {[%emt 0:00:05]} a6 {[%emt 0:05:23]} 8. f3 {[%emt 0:06:50]} Be6 {[%emt 0:03:56]} 9. Be3 {[%emt 0:04:15]} Qd7 {[%emt 0:02:37]} 10. g4 {[%emt 0:00:43]} Ng8 {[%emt 0:08:23]} 11. h4 {[%emt 0:04:54]} Bd6 {[%emt 0:01:52]} 12. Qd2 {[%emt 0:00:53]} Nge7 {[%emt 0:01:32]} 13. Bf4 {[%emt 0:06:40]} h5 {[%emt 0:08:58]} 14. Bxd6 {[%emt 0:04:11]} Qxd6 {[%emt 0:03:29]} 15. Qg5 {[%emt 0:00:33]} hxg4 {[%emt 0:10:43]} 16. fxg4 {[%emt 0:00:22]} O-O-O {[%emt 0:02:30]} 17. O-O-O {[%emt 0:02:31]} f6 {[%emt 0:18:30]} 18. Qxg7 {[%emt 0:03:15]} Bd7 {[%emt 0:01:51]} 19. Rdf1 {[%emt 0:05:37]} Rdf8 {[%emt 0:00:49]} 20. Bf5 {[%emt 0:15:04]} Bxf5 {[%emt 0:00:41]} 21. gxf5 {[%emt 0:00:16]} Rfg8 {[%emt 0:00:11]} 22. Qf7 {[%emt 0:01:46]} Nd8 {[%emt 0:00:16]} 23. Ne4 {[%emt 0:02:17]} Nxf7 {[%emt 0:02:40]} 24. Nxd6+ {[%emt 0:00:12]} Nxd6 {[%emt 0:00:03]} 25. Nf4 {[%emt 0:00:13]} Ndxf5 {[%emt 0:00:19]} 26. Nxd5 {[%emt 0:00:13]} Rh6 {[%emt 0:03:12]} 27. c3 {[%emt 0:04:45]} Nxd5 {[%emt 0:01:14]} 28. Rxf5 {[%emt 0:00:06]} Ne7 {[%emt 0:00:04]} 29. Rf2 {[%emt 0:00:28]} Kd7 {[%emt 0:01:02]} 30. Kc2 {[%emt 0:00:53]} Rg4 {[%emt 0:00:27]} 31. Kd3 {[%emt 0:01:03]} f5 {[%emt 0:00:22]} 32. h5 {[%emt 0:00:07]} Rg5 {[%emt 0:00:18]} 33. Rfh2 {[%emt 0:00:07]} Nd5 {[%emt 0:00:23]} 34. c4 {[%emt 0:01:25]} Nf6 {[%emt 0:00:26]} 35. Rf2 {[%emt 0:01:24]} Rhxh5 {[%emt 0:00:28]} 36. Rhf1 {[%emt 0:00:22]} Rh3+ {[%emt 0:01:04]} 37. Kc2 {[%emt 0:00:22]} Ng4 {[%emt 0:00:24]} 38. Rf3 {[%emt 0:01:31]} Ne3+ {[%emt 0:00:35]} 39. Kc1 {[%emt 0:00:23]} Rxf3 {[%emt 0:00:09]} 40. Rxf3 {[%emt 0:00:00]} Nxc4 {[%emt 0:00:00]} 0-1

[Event "AZE-ch Men 2019"]
[Site "Baku"]
[Date "2019.01.20"]
[Round "5"]
[White "Ilyasli, Ughur"]
[Black "Guliev, Sarhan"]
[Result "0-1"]
[ECO "E16"]
[WhiteElo "2148"]
[BlackElo "2342"]
[Annotator "ChessBase"]
[PlyCount "176"]
[EventDate "2019.01.16"]
[EventType "swiss"]
[EventCountry "AZE"]
[SourceTitle "playchess.com"]
[Source "ChessBase"]
[SourceQuality "1"]
[TimeControl "40/5400+30:1800+30"]

1. d4 {[%emt 0:00:00]} Nf6 {[%emt 0:00:28]} 2. c4 {[%emt 0:00:00]} e6 {[%emt 0:00:14]} 3. Nf3 {[%emt 0:00:00]} Bb4+ {[%emt 0:00:33]} 4. Bd2 {[%emt 0:01:31]} Qe7 {[%emt 0:00:22]} 5. g3 {[%emt 0:04:18]} Bxd2+ {[%emt 0:01:06]} 6. Nbxd2 {[%emt 0:02:50]} d6 {[%emt 0:00:18]} 7. e4 {[%emt 0:02:04]} e5 {[%emt 0:00:10]} 8. d5 {[%emt 0:00:07]} O-O {[%emt 0:04:51]} 9. Bg2 {[%emt 0:01:43]} a5 {[%emt 0:05:27]} 10. O-O {[%emt 0:10:31]} Ng4 {[%emt 0:07:50]} 11. h3 {[%emt 0:22:00]} Nh6 {[%emt 0:01:31]} 12. Ne1 {[%emt 0:01:11]} f5 {[%emt 0:00:36]} 13. exf5 {[%emt 0:03:08]} Nxf5 {[%emt 0:02:01]} 14. Ne4 {[%emt 0:00:38]} Nd4 {[%emt 0:02:22]} 15. Nc2 {[%emt 0:02:19]} Nxc2 {[%emt 0:00:16]} 16. Qxc2 {[%emt 0:00:06]} Bf5 {[%emt 0:00:05]} 17. f4 {[%emt 0:18:45]} exf4 {[%emt 0:04:02]} 18. Rxf4 {[%emt 0:00:23]} Nd7 {[%emt 0:00:22]} 19. Raf1 {[%emt 0:00:56]} g6 {[%emt 0:03:46]} 20. g4 {[%emt 0:05:24]} Bxe4 {[%emt 0:01:09]} 21. Qxe4 {[%emt 0:00:13]} Ne5 {[%emt 0:01:40]} 22. a3 {[%emt 0:06:17]} Qg5 {[%emt 0:07:39]} 23. c5 {[%emt 0:05:40]} Rxf4 {[%emt 0:03:30]} 24. Rxf4 {[%emt 0:03:10]} dxc5 {[%emt 0:04:57]} 25. h4 {[%emt 0:03:31]} Qe7 {[%emt 0:00:24]} 26. Rf2 {[%emt 0:02:26]} Re8 {[%emt 0:03:26]} 27. g5 {[%emt 0:00:54]} Nf7 {[%emt 0:00:34]} 28. Qe6 {[%emt 0:02:31]} Qxe6 {[%emt 0:01:53]} 29. dxe6 {[%emt 0:00:05]} Rxe6 {[%emt 0:00:10]} 30. Bxb7 {[%emt 0:00:30]} Re5 {[%emt 0:00:30]} 31. Rf4 {[%emt 0:01:26]} Nd6 {[%emt 0:00:15]} 32. Bc6 {[%emt 0:00:07]} c4 {[%emt 0:01:16]} 33. Rd4 {[%emt 0:00:59]} Rc5 {[%emt 0:01:58]} 34. Bd7 {[%emt 0:00:03]} Kf7 {[%emt 0:01:26]} 35. Kf1 {[%emt 0:00:11]} Ke7 {[%emt 0:00:27]} 36. Bg4 {[%emt 0:00:43]} c3 {[%emt 0:01:44]} 37. bxc3 {[%emt 0:00:13]} Rxc3 {[%emt 0:00:02]} 38. Rd2 {[%emt 0:00:59]} Rxa3 {[%emt 0:02:00]} 39. Re2+ {[%emt 0:00:28]} Kd8 {[%emt 0:03:09]} 40. Kg2 {[%emt 0:00:00]} a4 {[%emt 0:00:00]} 41. Rf2 {[%emt 0:02:54]} Re3 {[%emt 0:05:12]} 42. Bd1 {[%emt 0:03:56]} a3 {[%emt 0:00:59]} 43. Ba4 {[%emt 0:14:39]} Ke7 {[%emt 0:01:03]} 44. Rc2 {[%emt 0:03:43]} Kd8 {[%emt 0:00:44]} 45. Bc6 {[%emt 0:00:41]} Rb3 {[%emt 0:00:45]} 46. Rc5 {[%emt 0:01:20]} Nf5 {[%emt 0:01:08]} 47. h5 {[%emt 0:01:32]} a2 {[%emt 0:05:43]} 48. Ra5 {[%emt 0:01:15]} Rb2+ {[%emt 0:00:09]} 49. Kh3 {[%emt 0:00:08]} Nd4 {[%emt 0:00:15]} 50. Bd5 {[%emt 0:00:43]} Nb3 {[%emt 0:00:10]} 51. hxg6 {[%emt 0:02:25]} hxg6 {[%emt 0:01:07]} 52. Bxb3 {[%emt 0:00:03]} Rxb3+ {[%emt 0:00:07]} 53. Kg4 {[%emt 0:00:08]} Rb2 {[%emt 0:00:23]} 54. Kf4 {[%emt 0:00:12]} Kd7 {[%emt 0:00:50]} 55. Ra6 {[%emt 0:00:32]} Rg2 {[%emt 0:01:09]} 56. Kf3 {[%emt 0:01:30]} Rb2 {[%emt 0:03:30]} 57. Kf4 {[%emt 0:00:20]} c6 {[%emt 0:00:53]} 58. Ke5 {[%emt 0:00:39]} Rf2 {[%emt 0:00:17]} 59. Ra7+ {[%emt 0:00:09]} Kc8 {[%emt 0:00:02]} 60. Kd6 {[%emt 0:01:16]} Kb8 {[%emt 0:00:08]} 61. Ra3 {[%emt 0:01:08]} Kb7 {[%emt 0:00:13]} 62. Kc5 {[%emt 0:02:17]} Rc2+ {[%emt 0:01:17]} 63. Kb4 {[%emt 0:00:38]} Kb6 {[%emt 0:00:21]} 64. Ra8 {[%emt 0:00:18]} c5+ {[%emt 0:00:38]} 65. Kb3 {[%emt 0:00:07]} Rg2 {[%emt 0:00:09]} 66. Kc4 {[%emt 0:00:09]} Rg4+ {[%emt 0:00:39]} 67. Kb3 {[%emt 0:00:23]} Rg2 {[%emt 0:00:28]} 68. Kc4 {[%emt 0:00:04]} Rg4+ {[%emt 0:02:23]} 69. Kb3 {[%emt 0:00:08]} Kb5 {[%emt 0:00:09]} 70. Rb8+ {[%emt 0:00:12]} Kc6 {[%emt 0:00:02]} 71. Ra8 {[%emt 0:01:48]} Rg2 {[%emt 0:00:28]} 72. Kc4 {[%emt 0:00:33]} Kb6 {[%emt 0:07:26]} 73. Kb3 {[%emt 0:00:40]} Kb5 {[%emt 0:00:00]} 74. Rb8+ {[%emt 0:01:37]} Kc6 {[%emt 0:00:00]} 75. Ra8 {[%emt 0:00:13]} Kd5 {[%emt 0:00:00]} 76. Kc3 {[%emt 0:00:30]} Rxg5 {[%emt 0:00:11]} 77. Kb3 {[%emt 0:00:27]} Rg2 {[%emt 0:00:11]} 78. Rd8+ {[%emt 0:00:21]} Ke4 {[%emt 0:00:20]} 79. Re8+ {[%emt 0:00:13]} Kf4 {[%emt 0:00:15]} 80. Rf8+ {[%emt 0:00:08]} Kg4 {[%emt 0:00:13]} 81. Ra8 {[%emt 0:00:10]} g5 {[%emt 0:00:24]} 82. Kc4 {[%emt 0:00:04]} Kg3 {[%emt 0:00:33]} 83. Kxc5 {[%emt 0:00:15]} g4 {[%emt 0:00:06]} 84. Kd4 {[%emt 0:00:11]} Rf2 {[%emt 0:00:25]} 85. Ke3 {[%emt 0:02:08]} Kg2 {[%emt 0:00:05]} 86. Ra7 {[%emt 0:00:53]} g3 {[%emt 0:00:09]} 87. Ra8 {[%emt 0:00:26]} Kf1 {[%emt 0:00:11]} 88. Rh8 {[%emt 0:00:41]} g2 {[%emt 0:00:14]} 0-1

[Event "AZE-ch Men 2019"]
[Site "Baku"]
[Date "2019.01.20"]
[Round "5"]
[White "Jafarli, Babak"]
[Black "Isgandarov, Shahriyar"]
[Result "1-0"]
[ECO "A50"]
[WhiteElo "2128"]
[BlackElo "2113"]
[Annotator "ChessBase"]
[PlyCount "93"]
[EventDate "2019.01.16"]
[EventType "swiss"]
[EventCountry "AZE"]
[SourceTitle "playchess.com"]
[Source "ChessBase"]
[SourceQuality "1"]
[TimeControl "40/5400+30:1800+30"]

1. d4 {[%emt 0:18:55]} Nf6 {[%emt 0:04:27]} 2. c4 {[%emt 0:00:28]} c6 {[%emt 0:00:07]} 3. Nf3 {[%emt 0:00:12]} d5 {[%emt 0:00:18]} 4. g3 {[%emt 0:00:08]} Bf5 {[%emt 0:01:44]} 5. Nc3 {[%emt 0:00:44]} e6 {[%emt 0:01:11]} 6. Bg2 {[%emt 0:02:12]} Bd6 {[%emt 0:04:15]} 7. O-O {[%emt 0:00:23]} h6 {[%emt 0:03:17]} 8. Re1 {[%emt 0:01:48]} Nbd7 {[%emt 0:02:56]} 9. Nh4 {[%emt 0:09:40]} Bh7 {[%emt 0:03:20]} 10. e4 {[%emt 0:03:35]} dxe4 {[%emt 0:03:01]} 11. Nxe4 {[%emt 0:00:23]} Nxe4 {[%emt 0:00:53]} 12. Bxe4 {[%emt 0:00:09]} Bxe4 {[%emt 0:00:35]} 13. Rxe4 {[%emt 0:00:03]} Nf6 {[%emt 0:01:42]} 14. Re2 {[%emt 0:00:51]} O-O {[%emt 0:01:42]} 15. b3 {[%emt 0:00:15]} Qa5 {[%emt 0:06:48]} 16. a3 {[%emt 0:00:55]} Rad8 {[%emt 0:10:26]} 17. Bb2 {[%emt 0:06:19]} Qg5 {[%emt 0:04:30]} 18. Qc2 {[%emt 0:00:57]} Ng4 {[%emt 0:04:47]} 19. Rae1 {[%emt 0:04:50]} c5 {[%emt 0:09:42]} 20. Nf3 {[%emt 0:02:43]} Qh5 {[%emt 0:02:08]} 21. dxc5 {[%emt 0:05:41]} Bxc5 {[%emt 0:02:12]} 22. b4 {[%emt 0:02:35]} Bb6 {[%emt 0:05:47]} 23. c5 {[%emt 0:00:45]} Bc7 {[%emt 0:00:25]} 24. Kg2 {[%emt 0:00:17]} Qd5 {[%emt 0:02:09]} 25. Re4 {[%emt 0:02:41]} f5 {[%emt 0:08:01]} 26. Rd4 {[%emt 0:01:44]} Qc6 {[%emt 0:01:15]} 27. b5 {[%emt 0:00:10]} Qxb5 {[%emt 0:03:09]} 28. Rxe6 {[%emt 0:00:12]} Rxd4 {[%emt 0:03:00]} 29. Bxd4 {[%emt 0:02:20]} Bd8 {[%emt 0:03:58]} 30. h3 {[%emt 0:02:09]} Nf6 {[%emt 0:00:39]} 31. Qxf5 {[%emt 0:01:18]} Qd7 {[%emt 0:01:17]} 32. Bxf6 {[%emt 0:00:15]} Bxf6 {[%emt 0:00:25]} 33. Qe4 {[%emt 0:00:21]} Rc8 {[%emt 0:01:27]} 34. Rd6 {[%emt 0:08:15]} Qf7 {[%emt 0:00:32]} 35. Qf5 {[%emt 0:00:34]} Rc7 {[%emt 0:01:15]} 36. Ne5 {[%emt 0:03:08]} Qe8 {[%emt 0:02:17]} 37. Nd3 {[%emt 0:01:33]} Rf7 {[%emt 0:00:55]} 38. Qd5 {[%emt 0:00:55]} Kh8 {[%emt 0:00:46]} 39. Nf4 {[%emt 0:01:06]} Kh7 {[%emt 0:01:07]} 40. Re6 {[%emt 0:00:00]} Qd7 {[%emt 0:00:00]} 41. Qe4+ {[%emt 0:03:35]} Kg8 {[%emt 0:03:36]} 42. Ng6 {[%emt 0:00:14]} Rf8 {[%emt 0:02:52]} 43. Nxf8 {[%emt 0:00:20]} Kxf8 {[%emt 0:00:01]} 44. Rd6 {[%emt 0:00:19]} Qc7 {[%emt 0:01:04]} 45. Qe6 {[%emt 0:01:09]} Be7 {[%emt 0:00:23]} 46. Rd7 {[%emt 0:00:08]} Qxc5 {[%emt 0:00:22]} 47. Rxb7 {[%emt 0:00:10]} 1-0

[Event "AZE-ch Men 2019"]
[Site "Baku"]
[Date "2019.01.20"]
[Round "5"]
[White "Ahadzade, Kanan"]
[Black "Babazada, Khazar"]
[Result "1-0"]
[ECO "E63"]
[WhiteElo "2019"]
[BlackElo "2299"]
[Annotator "ChessBase"]
[PlyCount "103"]
[EventDate "2019.01.16"]
[EventType "swiss"]
[EventCountry "AZE"]
[SourceTitle "playchess.com"]
[Source "ChessBase"]
[SourceQuality "1"]
[TimeControl "40/5400+30:1800+30"]

1. d4 {[%emt 0:00:00]} Nf6 {[%emt 0:00:00]} 2. c4 {[%emt 0:00:00]} g6 {[%emt 0:00:00]} 3. Nf3 {[%emt 0:00:00]} Bg7 {[%emt 0:00:00]} 4. g3 {[%emt 0:00:00]} O-O {[%emt 0:00:15]} 5. Bg2 {[%emt 0:00:00]} d6 {[%emt 0:00:03]} 6. O-O {[%emt 0:00:01]} Nc6 {[%emt 0:00:02]} 7. Nc3 {[%emt 0:00:09]} a6 {[%emt 0:00:11]} 8. e4 {[%emt 0:09:50]} Rb8 {[%emt 0:00:24]} 9. a4 {[%emt 0:01:40]} Bg4 {[%emt 0:00:39]} 10. Be3 {[%emt 0:00:59]} e5 {[%emt 0:01:07]} 11. d5 {[%emt 0:02:06]} Ne7 {[%emt 0:00:16]} 12. Qc2 {[%emt 0:01:32]} Bxf3 {[%emt 0:00:42]} 13. Bxf3 {[%emt 0:00:07]} Nd7 {[%emt 0:00:01]} 14. Bg2 {[%emt 0:00:39]} f5 {[%emt 0:00:05]} 15. f3 {[%emt 0:00:10]} f4 {[%emt 0:01:02]} 16. Bf2 {[%emt 0:00:34]} fxg3 {[%emt 0:00:59]} 17. hxg3 {[%emt 0:00:37]} Nf6 {[%emt 0:02:12]} 18. Bh3 {[%emt 0:01:13]} Qe8 {[%emt 0:11:49]} 19. Be3 {[%emt 0:03:29]} c5 {[%emt 0:06:38]} 20. Qh2 {[%emt 0:03:40]} h5 {[%emt 0:01:52]} 21. Be6+ {[%emt 0:02:33]} Kh7 {[%emt 0:00:27]} 22. f4 {[%emt 0:01:39]} exf4 {[%emt 0:00:49]} 23. Bxf4 {[%emt 0:00:26]} Rd8 {[%emt 0:01:23]} 24. g4 {[%emt 0:01:49]} Nc8 {[%emt 0:04:53]} 25. Rae1 {[%emt 0:01:50]} Nb6 {[%emt 0:03:15]} 26. e5 {[%emt 0:10:19]} dxe5 {[%emt 0:00:28]} 27. Bxe5 {[%emt 0:01:09]} Nxc4 {[%emt 0:00:58]} 28. Bxf6 {[%emt 0:00:44]} Bxf6 {[%emt 0:00:04]} 29. gxh5 {[%emt 0:01:25]} Kg7 {[%emt 0:04:30]} 30. h6+ {[%emt 0:02:39]} Kh8 {[%emt 0:00:45]} 31. Rxf6 {[%emt 0:03:45]} Rxf6 {[%emt 0:01:05]} 32. Qh4 {[%emt 0:03:12]} Qe7 {[%emt 0:02:44]} 33. Qxc4 {[%emt 0:00:50]} Rdf8 {[%emt 0:01:33]} 34. Qg4 {[%emt 0:10:19]} Qc7 {[%emt 0:01:31]} 35. Qg5 {[%emt 0:02:58]} c4 {[%emt 0:01:10]} 36. Qe3 {[%emt 0:01:31]} Rf4 {[%emt 0:19:47]} 37. Qe5+ {[%emt 0:07:35]} Qxe5 {[%emt 0:00:49]} 38. Rxe5 {[%emt 0:00:06]} Rf1+ {[%emt 0:00:02]} 39. Kg2 {[%emt 0:00:12]} R1f2+ {[%emt 0:00:07]} 40. Kg3 {[%emt 0:00:00]} Rxb2 {[%emt 0:00:00]} 41. d6 {[%emt 0:02:09]} Rb3 {[%emt 0:00:35]} 42. Re3 {[%emt 0:00:17]} b5 {[%emt 0:00:12]} 43. Nd5 {[%emt 0:14:33]} b4 {[%emt 0:04:12]} 44. d7 {[%emt 0:09:53]} Rxe3+ {[%emt 0:00:41]} 45. Nxe3 {[%emt 0:00:01]} c3 {[%emt 0:00:04]} 46. Nc2 {[%emt 0:00:18]} a5 {[%emt 0:00:07]} 47. Kg4 {[%emt 0:00:09]} Rd8 {[%emt 0:01:01]} 48. Nd4 {[%emt 0:00:17]} Kh7 {[%emt 0:02:09]} 49. Kg5 {[%emt 0:00:04]} Rf8 {[%emt 0:00:04]} 50. Nb3 {[%emt 0:00:04]} c2 {[%emt 0:00:14]} 51. Nc1 {[%emt 0:00:04]} Rb8 {[%emt 0:01:48]} 52. Kf6 {[%emt 0:00:13]} 1-0

[Event "AZE-ch Men 2019"]
[Site "Baku"]
[Date "2019.01.20"]
[Round "5"]
[White "Guliyev, Gasan"]
[Black "Novruzov, Emin"]
[Result "1/2-1/2"]
[ECO "D04"]
[WhiteElo "1997"]
[BlackElo "1910"]
[Annotator "NA"]
[PlyCount "180"]
[EventDate "2019.01.16"]
[EventType "swiss"]
[EventCountry "AZE"]
[SourceTitle "playchess.com"]
[Source "ChessBase"]
[SourceQuality "1"]
[TimeControl "40/5400+30:1800+30"]

1. d4 {[%emt 0:08:31]} d5 {[%emt 0:01:03]} 2. Nf3 {[%emt 0:00:39]} Nf6 {[%emt 0:01:36]} 3. e3 {[%emt 0:00:41]} Bg4 {[%emt 0:03:22]} 4. Be2 {[%emt 0:00:53]} e6 {[%emt 0:00:36]} 5. O-O {[%emt 0:00:26]} Be7 {[%emt 0:01:49]} 6. b3 {[%emt 0:00:24]} O-O {[%emt 0:00:41]} 7. Bb2 {[%emt 0:00:13]} Ne4 {[%emt 0:02:40]} 8. Nfd2 {[%emt 0:01:40]} Bxe2 {[%emt 0:01:02]} 9. Qxe2 {[%emt 0:00:14]} Nxd2 {[%emt 0:08:59]} 10. Nxd2 {[%emt 0:00:28]} f5 {[%emt 0:01:08]} 11. Qb5 {[%emt 0:11:53]} Qc8 {[%emt 0:03:46]} 12. f3 {[%emt 0:04:33]} Nd7 {[%emt 0:03:03]} 13. e4 {[%emt 0:06:05]} Nf6 {[%emt 0:19:57]} 14. Rae1 {[%emt 0:18:52]} Re8 {[%emt 0:02:50]} 15. Re2 {[%emt 0:07:51]} Qd7 {[%emt 0:09:18]} 16. Qxb7 {[%emt 0:08:30]} a6 {[%emt 0:02:55]} 17. exd5 {[%emt 0:16:00]} exd5 {[%emt 0:07:56]} 18. Rfe1 {[%emt 0:00:12]} Reb8 {[%emt 0:02:15]} 19. Rxe7 {[%emt 0:00:14]} Rxb7 {[%emt 0:00:54]} 20. Rxd7 {[%emt 0:00:04]} Nxd7 {[%emt 0:00:08]} 21. Nf1 {[%emt 0:00:24]} Nf6 {[%emt 0:09:00]} 22. Ng3 {[%emt 0:01:28]} g6 {[%emt 0:01:18]} 23. Ne2 {[%emt 0:00:56]} Re8 {[%emt 0:00:26]} 24. Kf2 {[%emt 0:00:16]} c6 {[%emt 0:00:46]} 25. Rd1 {[%emt 0:00:13]} Rbe7 {[%emt 0:00:48]} 26. Rd2 {[%emt 0:04:53]} Kf7 {[%emt 0:00:52]} 27. Nc1 {[%emt 0:00:48]} Nd7 {[%emt 0:05:08]} 28. Nd3 {[%emt 0:00:47]} Re6 {[%emt 0:02:02]} 29. Kf1 {[%emt 0:02:30]} g5 {[%emt 0:00:25]} 30. a4 {[%emt 0:00:53]} Kg6 {[%emt 0:02:26]} 31. h3 {[%emt 0:01:35]} f4 {[%emt 0:00:50]} 32. Kf2 {[%emt 0:01:02]} Kf5 {[%emt 0:00:41]} 33. a5 {[%emt 0:00:43]} h5 {[%emt 0:01:33]} 34. Kf1 {[%emt 0:00:57]} Nf6 {[%emt 0:02:34]} 35. Ne5 {[%emt 0:00:47]} g4 {[%emt 0:00:26]} 36. hxg4+ {[%emt 0:00:27]} hxg4 {[%emt 0:00:08]} 37. Ke2 {[%emt 0:00:29]} g3 {[%emt 0:01:10]} 38. Rd1 {[%emt 0:00:14]} Rh8 {[%emt 0:00:45]} 39. Rg1 {[%emt 0:00:08]} Nd7 {[%emt 0:00:29]} 40. Kd3 {[%emt 0:00:00]} Nxe5+ {[%emt 0:00:00]} 41. dxe5 {[%emt 0:00:16]} Rh2 {[%emt 0:04:48]} 42. c4 {[%emt 0:03:36]} Reh6 {[%emt 0:00:32]} 43. cxd5 {[%emt 0:00:46]} cxd5 {[%emt 0:00:12]} 44. b4 {[%emt 0:00:06]} Rh1 {[%emt 0:00:24]} 45. Rxh1 {[%emt 0:00:04]} Rxh1 {[%emt 0:00:05]} 46. b5 {[%emt 0:00:17]} axb5 {[%emt 0:15:35]} 47. Kd4 {[%emt 0:08:14]} Rd1+ {[%emt 0:07:10]} 48. Kc3 {[%emt 0:12:53]} d4+ {[%emt 0:02:23]} 49. Kc2 {[%emt 0:04:21]} Rg1 {[%emt 0:00:50]} 50. a6 {[%emt 0:01:23]} Rxg2+ {[%emt 0:00:37]} 51. Kb3 {[%emt 0:00:05]} Rxb2+ {[%emt 0:04:20]} 52. Kxb2 {[%emt 0:00:13]} g2 {[%emt 0:00:02]} 53. a7 {[%emt 0:00:07]} g1=Q {[%emt 0:00:06]} 54. a8=Q {[%emt 0:00:04]} Qf2+ {[%emt 0:00:08]} 55. Kb3 {[%emt 0:00:29]} Qe3+ {[%emt 0:00:42]} 56. Kb4 {[%emt 0:01:09]} Qxe5 {[%emt 0:00:34]} 57. Qf8+ {[%emt 0:01:27]} Kg6 {[%emt 0:00:27]} 58. Qg8+ {[%emt 0:00:53]} Kh6 {[%emt 0:00:25]} 59. Qf8+ {[%emt 0:00:22]} Kh5 {[%emt 0:00:16]} 60. Qg8 {[%emt 0:01:36]} Kh6 {[%emt 0:01:37]} 61. Qf8+ {[%emt 0:00:22]} Kh5 {[%emt 0:00:06]} 62. Qg8 {[%emt 0:00:05]} Qd6+ {[%emt 0:00:56]} 63. Kxb5 {[%emt 0:00:27]} d3 {[%emt 0:00:06]} 64. Qh7+ {[%emt 0:01:25]} Kg5 {[%emt 0:00:16]} 65. Qg7+ {[%emt 0:01:04]} Kf5 {[%emt 0:00:50]} 66. Qf7+ {[%emt 0:00:19]} Ke5 {[%emt 0:00:32]} 67. Qg7+ {[%emt 0:00:50]} Kd5 {[%emt 0:00:29]} 68. Qg5+ {[%emt 0:01:34]} Kd4 {[%emt 0:00:36]} 69. Qg1+ {[%emt 0:00:04]} Kd5 {[%emt 0:00:42]} 70. Qg8+ {[%emt 0:00:24]} Ke5 {[%emt 0:00:30]} 71. Qg5+ {[%emt 0:01:08]} Ke6 {[%emt 0:00:11]} 72. Qg6+ {[%emt 0:00:28]} Kd7 {[%emt 0:00:44]} 73. Qh7+ {[%emt 0:00:49]} Kc8 {[%emt 0:00:37]} 74. Qh8+ {[%emt 0:01:07]} Kc7 {[%emt 0:00:23]} 75. Qc3+ {[%emt 0:00:14]} Kb7 {[%emt 0:00:31]} 76. Qg7+ {[%emt 0:00:41]} Qc7 {[%emt 0:00:38]} 77. Qd4 {[%emt 0:00:23]} Qc6+ {[%emt 0:00:28]} 78. Kb4 {[%emt 0:00:21]} Qxf3 {[%emt 0:00:37]} 79. Kc3 {[%emt 0:00:18]} Kc6 {[%emt 0:00:36]} 80. Qxd3 {[%emt 0:00:20]} Qg3 {[%emt 0:00:21]} 81. Kd4 {[%emt 0:00:47]} Qg7+ {[%emt 0:00:37]} 82. Ke4 {[%emt 0:00:31]} Qg6+ {[%emt 0:00:12]} 83. Kd4 {[%emt 0:00:05]} Qg7+ {[%emt 0:00:47]} 84. Ke4 {[%emt 0:00:19]} Qh7+ {[%emt 0:00:00]} 85. Kd4 {[%emt 0:00:10]} Qh4 {[%emt 0:00:56]} 86. Qg6+ {[%emt 0:00:33]} Kd7 {[%emt 0:00:16]} 87. Qf5+ {[%emt 0:00:14]} Ke7 {[%emt 0:00:13]} 88. Ke4 {[%emt 0:00:06]} f3+ {[%emt 0:00:59]} 89. Kxf3 {[%emt 0:00:07]} Qf6 {[%emt 0:00:03]} 90. Qxf6+ {[%emt 0:00:02]} Kxf6 {[%emt 0:00:16]} 1/2-1/2